{"text_format":"3","workbook":"xlsx","n_sheets":2,"sheets":["Total Preferences","Offers by Band"],"read":"whole","date_system":"1900"}

{"sheet":"Total Preferences","index":0,"n_rows":21,"n_cols":21,"rows_kept":21,"merged":[[0,4,0,10],[0,11,0,18]]}
[{"$nulls":4},"Total Number of Applications",{"$nulls":6},"Number of places offered on National Offer Day 2024"]
["Secondary School","URN & DFE Numbers","Published Admission Number","Oversubscribed on National Offer Day 2024","First preference ","Second preference","Third preference","Fourth preference","Fifth preference","Sixth preference","Total preferences","First preference ","Second preference","Third preference","Fourth preference","Fifth preference","Sixth preference","Total preferences","Total with SEND and LA Allocations*","Criteria of last place offered","Last distance offered in metres, using a straight line"]
["Ark Greenwich Free School ","138245 & 203/4001",120,"Yes",255,230,213,153,100,67,{"$f":"SUM(E3:J3)","v":1018},91,18,6,4,2,2,{"$f":"SUM(L3:Q3)","v":123},"128**","Distance",1381.89]
["Eltham Hill School ","100182 & 203/4077",225,"Yes",264,182,128,93,68,40,775,174,32,7,5,3,0,221,225,"Distance",2881.88]
["Harris Academy Greenwich ","138449 & 203/4000",180,"Yes",260,307,286,200,154,101,1308,118,38,15,1,0,0,172,180]
["Leigh Academy Blackheath","145895 & 203/4008",180,"Yes",390,319,247,160,116,89,1321,145,11,9,6,1,0,172,180]
["Plumstead Manor School ","100183 & 203/4130",240,"Yes",171,122,90,69,57,37,546,166,26,15,9,7,1,224,240,"Distance",3622.15]
["Royal Greenwich Trust School ","143927 & 203/4006",150,"Yes",118,91,93,83,62,52,499,110,28,15,13,4,3,173,"180**","Distance",4905.88]
["St Mary Magdalene CE all through school","100171 & 203/3526",90,"Yes",76,70,63,52,35,33,329,62,22,12,7,3,0,106,"109**","Distance",6170.76]
["St Pauls Academy ","105135 & 203/6905",240,"No",141,113,70,53,41,26,444,141,27,5,4,5,0,182,240,"Distance",8706.73]
["St Thomas More Catholic Comprehensive School","141716 & 203/4716",124,"Yes",148,96,103,69,45,46,507,99,9,2,2,0,2,114,124,"Faith","N/A"]
["St Ursula's Convent School","100193 & 203/4682",135,"No",79,68,43,40,43,18,291,79,24,12,4,6,1,126,135,"Faith","N/A"]
["Stationers' Crown Woods Academy","141309 & 203/4271",270,"Yes",383,347,242,165,112,87,1336,189,39,8,11,5,2,254,270]
["The Halley Academy ","145315 & 203/4007",180,"No",57,74,99,115,71,44,460,57,33,31,21,11,2,155,"210**"]
["The John Roan School ","147439 & 203/4009",180,"Yes",140,133,127,77,69,66,612,111,28,24,3,2,1,169,"186**","Distance",1922.76]
["Thomas Tallis School ","100190 & 203/4294",270,"Yes",335,331,271,161,129,113,1340,200,33,7,8,2,1,251,270,"Distance",1728.12]
["Woolwich Polytechnic School for Boys","141163 & 203/4250",240,"No",146,66,56,42,24,18,352,146,12,9,13,3,4,187,240,"Distance",6724.45]
["Woolwich Polytechnic School for Girls ","143686 & 203/4005",240,"No",154,60,49,29,29,30,351,154,17,13,1,3,1,189,240,"Distance",49621.24]
[]
["* means data includes SEND and LA Allocations","SEND means children with an Education, Health and Care Plan naming the school","Allocations represent offers made to resident children where it is not possible to make a preference offer"]
["** means data includes additional offers over PAN on National Offer Day, to support the LA due to high demand"]

{"sheet":"Offers by Band","index":1,"n_rows":48,"n_cols":6,"rows_kept":48}
[]
["Harris Academy Greenwich"]
[null,"Total Number of Applications ","Oversubscribed","Offers by Band","Criteria of last place offered","Last distance offered in metres, using a straight line"]
["Band 1",44,"Yes",7,"Distance ",486.88]
["Band 2",59,"Yes",13,"Distance ",1424.99]
["Band 3",73,"Yes",22,"Distance ",2612.73]
["Band 4",107,"Yes",28,"Distance ",1745.63]
["Band 5 ",113,"Yes",34,"Distance ",2994.05]
["Band 6",131,"Yes",28,"Distance ",2065.64]
["Band 7 ",128,"Yes",20,"Distance ",2167.49]
["Band 8",117,"Yes",13,"Distance ",1304.64]
["Band 9",210,"Yes",7,"Distance ",185.28]
["Untested",326]
[null,null,"Total Offers by Band",{"$f":"SUM(D4:D13)","v":172}]
[null,null,"Total Offers  with SEND and LA Allocations",180]
[]
["Leigh Academy Blackheath"]
[null,"Total Number of Applications ","Oversubscribed","Offers by Band","Criteria of last place offered","Last distance offered in metres, using a straight line"]
["Band 1",185,"Yes",36,"Distance ",1646.01]
["Band 2",179,"Yes",36,"Distance ",1011.88]
["Band 3",194,"Yes",36,"Distance ",615.09]
["Band 4",179,"Yes",36,"Distance ",1452.29]
["Band 5",193,"Yes",28,"Distance ",450]
["Untested",391,null,0]
[null,null,"Total Offers by Band",{"$f":"SUM(D19:D24)","v":172}]
[null,null,"Total Offers  with SEND and LA Allocations",180]
[]
["Stationer's Crown Woods Academy"]
[null,"Total Number of Applications ","Oversubscribed","Offers by Band","Criteria of last place offered","Last distance offered in metres, using a straight line"]
["Band 1",209,"Yes",54,"Distance ",2149.09]
["Band 2",209,"Yes",54,"Distance ",2186.18]
["Band 3",210,"Yes",54,"Distance ",2099.95]
["Band 4",209,"Yes",54,"Distance ",1959.77]
["Band 5",214,"Yes",38,"Distance ",970.22]
["Untested",285,null,0]
[null,null,"Total Offers by Band",{"$f":"SUM(D30:D35)","v":254}]
[null,null,"Total Offers  with SEND and LA Allocations",270]
[]
["The Halley Academy "]
[null,"Total Number of Applications ","Oversubscribed","Offers by Band","Criteria of last place offered","Last distance offered in metres, using a straight line"]
["Band 1",50,"No",15,"Distance ",5022.81]
["Band 2",50,"No",16,"Distance ",4206.39]
["Band 3",45,"No",16,"Distance ",10072.23]
["Band 4",53,"No",26,"Distance ",5182.46]
["Band 5",47,"No",25,"Distance ",4990.67]
["Untested",215,null,57,null,7282.39]
[null,null,"Total Offers by Band",{"$f":"SUM(D41:D46)","v":155}]
[null,null,"Total Offers  with SEND and LA Allocations",210]